bitfinex/quotes_SOLUSD_20260202
["timestamp","ask_amount","ask_price","bid_price","bid_amount"]
[1770051274941,9.50228543,105.24,105.2,12.62341355]
[1770051275147,13.50484775,105.24,105.2,12.62341355]
[1770051275342,3.30333725,105.23,105.2,3.92490877]
[1770051275565,3.30333725,105.23,105.2,22.1287251]
[1770051276448,18.20079021,105.24,105.2,22.1287251]
[1770051276449,4.00256232,105.24,105.21,8.69850478]
[1770051276649,4.00256232,105.23,105.2,22.1287251]
[1770051277363,4.00256232,105.23,105.2,3.92490877]
[1770051277544,4.00256232,105.23,105.2,13.43039192]
[1770051277740,22.20342011,105.24,105.2,13.43039192]
[1770051278064,22.20342011,105.24,105.2,22.1288967]
[1770051278461,22.20342011,105.24,105.2,3.92490877]
[1770051278866,22.20342011,105.24,105.2,13.43038801]
[1770051279076,22.20342011,105.24,105.2,22.12889279]
[1770051279772,12.7010671,105.25,105.21,12.62341355]
[1770051280276,8.69850478,105.24,105.18,27.69224717]
[1770051280569,12.7010671,105.25,105.2,22.12891193]
[1770051280971,12.7010671,105.25,105.21,12.62341355]
[1770051281152,4.00256232,105.25,105.22,3.92490877]
[1770051281353,4.00256232,105.24,105.21,12.62341355]
[1770051281552,4.00256232,105.25,105.21,12.62341355]
[1770051281754,4.00256232,105.25,105.22,13.42880536]
[1770051282157,13.50387077,105.25,105.22,3.92490877]
[1770051282564,12.7010671,105.24,105.2,22.12861802]
[1770051283274,4.00256232,105.23,105.19,12.62341355]
[1770051283450,12.7010671,105.23,105.19,12.62341355]
[1770051283653,12.7010671,105.24,105.2,13.43052213]
[1770051283957,9.50299344,105.23,105.2,3.92490877]
[1770051284972,9.50259909,105.24,105.21,3.92490877]
[1770051285177,4.00256232,105.25,105.21,12.62341355]
[1770051285971,13.50423514,105.25,105.21,12.62341355]
[1770051286354,13.50423514,105.25,105.21,22.12805814]
[1770051288064,4.00256232,105.25,105.22,22.12727533]
[1770051288263,0.2,105.27,105.25,3.92490877]
[1770051288569,0.2,105.27,105.26,8.69850478]
[1770051288759,0.2,105.27,105.26,12.66171024]
[1770051288956,1e-08,105.27,105.26,12.66171024]
[1770051289575,1e-08,105.27,105.26,3.96320546]
[1770051290761,13.51058828,105.29,105.26,3.96320546]
[1770051290969,109.01005414,105.3,105.26,22.16197919]
[1770051291157,4.01293428,105.29,105.26,12.66171024]
[1770051292589,113.69562464,105.3,105.28,4.10315324]
[1770051292590,95.5,105.3,105.28,4.10315324]
[1770051292873,4.01293428,105.29,105.26,18.19868218]
[1770051293070,4.01293428,105.29,105.26,9.5001774]
[1770051293271,4.01293428,105.29,105.26,13.60333064]
[1770051293462,4.01293428,105.29,105.26,4.10315324]
[1770051293662,4.01293428,105.29,105.26,12.80165802]
[1770051293864,104.99672847,105.3,105.27,4.10315324]
[1770051294058,109.00969988,105.3,105.26,13.60339004]
[1770051294257,4.01293428,105.29,105.25,22.30241757]
[1770051294462,4.01293428,105.29,105.26,12.80165802]
[1770051294674,4.01293428,105.29,105.26,22.30193013]
[1770051295071,117.70820466,105.3,105.26,22.30193013]
[1770051295272,99.51293428,105.3,105.27,8.69850478]
[1770051295472,109.00976727,105.3,105.27,8.69850478]
[1770051295776,109.00976727,105.3,105.26,22.30193013]
[1770051295987,117.70827205,105.3,105.26,22.30193013]
[1770051296176,99.51293428,105.3,105.27,12.80165802]
[1770051296371,117.70824453,105.3,105.26,22.30193013]
[1770051296981,4.01293428,105.29,105.26,12.80165802]
[1770051297177,109.00973975,105.3,105.27,4.10315324]
[1770051297381,99.51293428,105.3,105.27,8.69850478]
[1770051297572,95.5,105.3,105.28,12.80165802]
[1770051298684,95.5,105.3,105.27,12.80165802]
[1770051298884,117.70825861,105.3,105.26,22.30185791]
[1770051299063,4.01293428,105.28,105.24,13.60484824]
[1770051299385,4.01293428,105.28,105.25,22.3027653]
[1770051299776,12.71143906,105.29,105.25,22.3027653]
[1770051300291,22.20925579,105.29,105.26,4.10315324]
[1770051300467,4.01293428,105.27,105.23,22.30391272]
[1770051300668,8.69850478,105.26,105.22,4.10315324]
[1770051300879,8.69850478,105.25,105.22,4.10315324]
[1770051301087,4.01293428,105.24,105.2,22.30693309]
[1770051301381,12.71143906,105.24,105.2,13.60842831]
[1770051301587,12.71143906,105.23,105.18,22.30848586]
[1770051301968,12.71143906,105.23,105.19,4.10315324]
[1770051302168,8.69850478,105.22,105.19,4.10315324]
[1770051302392,22.21578435,105.22,105.19,4.10315324]
[1770051302992,22.21578435,105.22,105.18,13.60998108]
[1770051303166,12.71143906,105.22,105.18,22.30848586]
[1770051304093,22.21537898,105.22,105.18,22.30848586]
[1770051304287,12.71143906,105.21,105.17,4.10315324]
[1770051304679,4.01293428,105.21,105.18,4.10315324]
[1770051306292,22.21625031,105.21,105.17,13.61090337]
[1770051306675,22.21561265,105.22,105.18,22.30903228]
[1770051307189,8.69850478,105.21,105.18,4.10315324]
[1770051307485,22.21561265,105.22,105.18,22.30877188]
[1770051307906,12.71143906,105.22,105.18,22.30877188]
[1770051308198,22.21546437,105.22,105.18,13.6102671]
[1770051308382,12.71143906,105.21,105.18,4.10315324]
[1770051309296,12.71143906,105.21,105.17,13.61113494]
[1770051309601,12.71143906,105.21,105.17,22.30963972]
[1770051309785,12.71143906,105.21,105.18,9.5073852]
[1770051310189,12.71143906,105.21,105.17,4.10315324]
[1770051310190,4.01293428,105.2,105.17,4.10315324]
[1770051310493,4.01293428,105.2,105.16,4.10315324]
[1770051310494,22.21334036,105.2,105.16,4.10315324]
[1770051310876,8.69443214,105.19,105.16,4.10315324]
[1770051311390,12.70736642,105.19,105.16,4.10315324]
[1770051311578,4.01293428,105.19,105.16,4.10315324]
[1770051311776,13.51815198,105.21,105.17,4.10315324]
[1770051311999,12.70736642,105.2,105.16,22.30623518]
[1770051313386,22.21307045,105.2,105.16,22.30623518]
[1770051314001,22.21307045,105.2,105.16,12.79758538]
[1770051315300,22.21307045,105.2,105.16,22.30682765]
[1770051315602,4.01293428,105.2,105.17,4.10315324]
[1770051315793,4.01293428,105.2,105.16,22.30682765]
[1770051315981,13.51875779,105.2,105.16,22.30682765]
[1770051316884,22.21318993,105.2,105.16,22.30682765]
[1770051318584,4.01293428,105.2,105.17,12.79758538]
[1770051319486,3.29306901,105.21,105.18,12.79758538]
[1770051319890,39.91683487,105.22,105.18,22.30457101]
[1770051320199,13.51683487,105.22,105.18,22.30457101]
[1770051321185,13.51683487,105.22,105.18,13.61013887]
[1770051321385,13.51683487,105.22,105.18,22.30457101]
[1770051322304,3.90552821,105.24,105.21,12.56369921]
[1770051322811,12.59996035,105.23,105.19,12.56369921]
[1770051323399,3.90552821,105.22,105.18,9.50698563]
[1770051323593,12.59996035,105.21,105.17,22.0717076]
[1770051324004,12.59996035,105.22,105.19,3.86926707]
[1770051324389,22.10420222,105.22,105.18,22.07110648]
[1770051324788,8.69443214,105.21,105.18,13.37667434]
[1770051325289,22.10420222,105.22,105.18,13.37667434]
[1770051325905,22.10481536,105.21,105.17,22.07168383]
[1770051326086,3.90552821,105.2,105.17,22.07168383]
[1770051326486,22.10481536,105.21,105.17,22.07168383]
[1770051327303,3.90552821,105.19,105.16,13.37797849]
[1770051327509,12.59996035,105.19,105.15,13.47895796]
[1770051327695,12.59996035,105.19,105.15,22.1733901]
[1770051327895,12.59996035,105.19,105.16,9.50927438]
[1770051328702,12.59996035,105.19,105.15,13.47911494]
[1770051328907,12.59996035,105.18,105.15,13.47911494]
[1770051329104,3.90552821,105.17,105.15,0.1]
[1770051330288,13.41437355,105.17,105.15,0.1]
[1770051330588,12.59996035,105.16,105.13,3.86926707]
[1770051330788,3.90552821,105.15,105.11,22.07711867]
[1770051331096,3.90552821,105.15,105.12,3.86926707]
[1770051331097,12.59996035,105.15,105.12,3.86926707]
[1770051331493,22.10999938,105.16,105.12,22.07660678]
[1770051332287,3.90552821,105.18,105.15,3.86926707]
[1770051332511,3.90552821,105.16,105.13,3.86926707]
[1770051332687,12.59996035,105.16,105.13,3.86926707]
[1770051333088,3.90552821,105.15,105.11,13.38308376]
[1770051333289,12.59996035,105.16,105.12,22.07652475]
[1770051333489,3.90552821,105.15,105.12,13.38209261]
[1770051333699,3.90552821,105.13,105.08,3.86926707]
[1770051333901,3.90552821,105.12,105.09,3.86926707]
[1770051334107,12.59996035,105.13,105.09,13.38418996]
[1770051334506,7.38838351,105.13,105.09,13.38418996]
[1770051335408,7.38838351,105.14,105.1,7.35212237]
[1770051335590,7.38838351,105.14,105.1,16.86624394]
[1770051335794,16.89983369,105.14,105.1,3.86926707]
[1770051336398,16.89983369,105.14,105.1,13.38360346]
[1770051337315,16.89983369,105.14,105.1,3.86926707]
[1770051337520,7.38838351,105.13,105.1,3.86926707]
[1770051338413,13.41697839,105.14,105.1,13.38350513]
[1770051338604,7.38838351,105.14,105.11,3.86926707]
[1770051338805,3.90552821,105.14,105.11,3.86926707]
[1770051339401,4.18985135,105.16,105.12,7.35212237]
[1770051339596,7.38838351,105.15,105.12,3.86926707]
[1770051340212,3.90552821,105.15,105.12,3.86926707]
[1770051340399,12.99264319,105.16,105.13,3.86926707]
[1770051341620,36.76325791,105.17,105.14,3.86926707]
[1770051342311,12.99176698,105.17,105.14,3.86926707]
[1770051342510,3.4828553,105.18,105.15,3.86926707]
[1770051342905,3.4828553,105.17,105.14,3.86926707]
[1770051343123,3.4828553,105.15,105.12,3.86926707]
[1770051343322,3.4828553,105.14,105.12,3.86926707]
[1770051344006,3.4828553,105.15,105.12,3.86926707]
[1770051344527,3.4828553,105.14,105.12,3.86926707]
[1770051345333,12.9935202,105.15,105.12,3.86926707]
[1770051345509,9.5106649,105.15,105.12,3.86926707]
[1770051345709,12.9935202,105.15,105.12,3.86926707]
[1770051346212,16.89904841,105.15,105.12,3.86926707]
[1770051346417,16.89904841,105.15,105.11,3.86926707]
[1770051346622,12.9935202,105.15,105.11,3.86926707]
[1770051347013,3.4828553,105.14,105.11,3.86926707]
[1770051347207,9.51293759,105.12,105.09,3.86926707]
[1770051347431,12.99579289,105.12,105.09,3.86926707]
[1770051348523,18.22136219,105.12,105.09,3.86926707]
[1770051349629,12.28394371,105.11,105.07,3.66103285]
[1770051349934,8.7084246,105.11,105.07,3.66103285]
[1770051351636,18.22275258,105.11,105.07,13.17847263]
[1770051352134,18.22275258,105.11,105.08,3.5766111]
[1770051354334,12.44723812,105.1,105.07,3.5766111]
[1770051354517,8.7084246,105.08,105.06,0.1]
[1770051354714,8.7084246,105.09,105.06,3.6766111]
[1770051355332,12.44723812,105.09,105.06,3.6766111]
[1770051355630,8.7084246,105.08,105.06,0.1]
[1770051355835,8.7084246,105.09,105.06,3.6766111]
[1770051356334,18.22473914,105.09,105.06,3.6766111]
[1770051357632,21.96247506,105.1,105.07,3.5766111]
[1770051357838,12.44723812,105.09,105.06,3.6766111]
[1770051358333,8.7084246,105.08,105.06,3.6766111]
[1770051358534,12.44723812,105.09,105.06,3.6766111]
[1770051359530,21.96343211,105.09,105.06,3.6766111]
[1770051360229,18.22461859,105.09,105.06,3.6766111]
[1770051361021,32.7810995,105.11,105.06,3.6766111]
[1770051361022,6.05677636,105.11,105.07,12.2850357]
[1770051361226,6.05677636,105.11,105.08,3.5766111]
[1770051361227,14.76520096,105.11,105.08,3.5766111]
[1770051362142,12.44723812,105.1,105.07,3.5766111]
[1770051362324,12.44723812,105.1,105.06,3.6766111]
[1770051362519,28.01801633,105.11,105.07,3.5766111]
[1770051363149,6.05677636,105.11,105.08,3.5766111]
[1770051363440,15.57068524,105.11,105.08,3.5766111]
[1770051363662,14.76520096,105.11,105.08,3.5766111]
[1770051363841,6.05677636,105.11,105.08,3.5766111]
[1770051364029,24.27941373,105.11,105.08,3.5766111]
[1770051364527,6.05677636,105.11,105.09,3.5766111]
[1770051364741,35.1484246,105.13,105.1,3.5766111]
[1770051364956,38.88723812,105.13,105.1,3.5766111]
[1770051365142,37.02521534,105.15,105.11,3.5766111]
[1770051365339,12.44723812,105.14,105.1,3.5766111]
[1770051365545,12.44723812,105.14,105.08,33.30754468]
[1770051365546,12.44723812,105.12,105.08,21.80118335]
[1770051365750,3.73881352,105.12,105.08,21.80118335]
[1770051366053,21.95794431,105.15,105.11,12.2850357]
[1770051366256,12.44723812,105.15,105.11,12.2850357]
[1770051366441,9.80401076,105.17,105.14,3.5766111]
[1770051366638,19.31285832,105.17,105.13,3.5766111]
[1770051366841,28.02128292,105.17,105.13,21.79701604]
[1770051367050,28.02128292,105.17,105.14,3.5766111]
[1770051367249,19.31285832,105.17,105.14,3.5766111]
[1770051367842,9.80401076,105.17,105.14,3.5766111]
[1770051368054,19.31250743,105.17,105.14,3.5766111]
[1770051368248,9.80401076,105.17,105.14,13.08749715]
[1770051368444,19.31282576,105.17,105.14,3.5766111]
[1770051369064,9.80401076,105.17,105.14,3.5766111]
[1770051369246,19.31265126,105.17,105.14,3.5766111]
[1770051370156,19.31265126,105.17,105.13,8.7084246]
[1770051370157,18.51243536,105.17,105.13,12.2850357]
[1770051370545,3.73881352,105.15,105.11,7.05654634]
[1770051370746,3.47993524,105.16,105.11,3.5766111]
[1770051370747,7.21874876,105.14,105.11,3.5766111]
[1770051371070,7.21874876,105.13,105.09,13.09177206]
[1770051371239,7.21874876,105.13,105.1,3.5766111]
[1770051371433,7.21874876,105.14,105.1,3.5766111]
[1770051371762,3.73881352,105.13,105.1,3.5766111]
[1770051371955,3.73881352,105.13,105.1,13.0912809]
[1770051372259,7.21874876,105.13,105.09,16.57165399]
[1770051372436,7.21874876,105.13,105.09,7.05654634]
[1770051373043,3.73881352,105.13,105.1,3.5766111]
[1770051373560,3.73881352,105.14,105.11,3.5766111]
[1770051374153,7.21874876,105.14,105.11,3.5766111]
[1770051374557,7.21874876,105.14,105.1,3.5766111]
[1770051375158,16.73017425,105.14,105.1,13.09124276]
[1770051375461,16.73017425,105.14,105.11,3.5766111]
[1770051377470,6.06519724,105.17,105.14,3.5766111]
[1770051377763,19.31247462,105.17,105.14,3.5766111]
[1770051378259,6.06519724,105.17,105.14,7.05654634]
[1770051379146,3.73881352,105.19,105.16,14.84147296]
[1770051379952,16.72555622,105.19,105.15,12.98984305]
[1770051380266,13.24562098,105.19,105.15,14.86575548]
[1770051380439,3.73881352,105.19,105.16,9.50922599]
[1770051380639,13.24546864,105.19,105.15,14.86558007]
[1770051381165,3.73019105,105.18,105.15,14.87716539]
[1770051381371,13.23684617,105.19,105.15,14.87716539]
[1770051381663,16.71628481,105.2,105.16,5.36743299]
[1770051382343,13.23634957,105.2,105.16,10.58156854]
[1770051382746,21.93042036,105.2,105.16,10.58156854]
[1770051382943,3.73019105,105.19,105.16,8.69407079]
[1770051383370,3.73019105,105.19,105.16,18.20326921]
[1770051383563,3.73019105,105.19,105.16,20.11353993]
[1770051384654,3.73019105,105.18,105.14,10.61553219]
[1770051384965,3.73019105,105.17,105.14,8.69407079]
[1770051385564,0.28432314,105.18,105.14,10.62567494]
[1770051385757,3.73019105,105.18,105.15,9.51010468]
[1770051385960,13.237044,105.19,105.15,20.14580588]
[1770051386161,3.73019105,105.19,105.16,9.50915031]
[1770051386363,3.73019105,105.19,105.16,18.2032211]
[1770051387171,3.73019105,105.19,105.16,8.69407079]
[1770051387673,3.73019105,105.18,105.14,11.46202535]
[1770051387860,3.73019105,105.18,105.14,10.64561229]
[1770051388173,3.73019105,105.17,105.14,18.20477544]
[1770051389166,3.73019105,105.14,105.1,8.69407079]
[1770051390068,3.73019105,105.14,105.1,18.20809151]
[1770051390458,21.93597349,105.14,105.1,18.20809151]
[1770051390852,21.93597349,105.14,105.1,8.69407079]
[1770051391161,3.73019105,105.12,105.08,8.69407079]
[1770051391459,12.42426184,105.12,105.08,22.14204566]
[1770051391660,3.73019105,105.11,105.08,18.21010766]
[1770051391868,8.69407079,105.12,105.09,9.51531294]
[1770051392055,12.42426184,105.12,105.09,9.51531294]
[1770051392259,12.42426184,105.12,105.08,22.14204492]
[1770051392478,21.93772967,105.12,105.08,22.14204492]
[1770051392667,3.73019105,105.13,105.09,12.62600879]
[1770051392867,12.42426184,105.13,105.09,12.62600879]
[1770051393072,3.73019105,105.12,105.08,45.93344195]
[1770051393759,3.73019105,105.12,105.09,8.69407079]
[1770051393961,3.73019105,105.12,105.09,18.20953432]
[1770051394361,3.73019105,105.12,105.09,9.51546353]
[1770051394660,3.73019105,105.12,105.09,18.20953432]
[1770051395378,3.73019105,105.12,105.09,22.14147232]
[1770051395974,21.93562654,105.14,105.1,8.69407079]
[1770051396173,3.73019105,105.17,105.13,12.62600879]
[1770051396353,3.73019105,105.17,105.14,12.62600879]
[1770051396558,3.73019105,105.19,105.15,12.62600879]
[1770051396872,3.73019105,105.19,105.16,8.69407079]
[1770051397269,3.73019105,105.18,105.15,8.69407079]
[1770051397455,21.93293589,105.17,105.13,22.13790041]
[1770051397879,12.42426184,105.16,105.12,18.20650232]
[1770051398372,12.42426184,105.16,105.13,9.51186948]
[1770051398561,12.42426184,105.16,105.12,22.13866987]
[1770051398761,3.73019105,105.15,105.12,18.20673187]
[1770051400269,3.73019105,105.16,105.12,22.13866987]
[1770051400469,13.23962419,105.16,105.12,22.13866987]
[1770051400980,3.73019105,105.16,105.13,8.69407079]
[1770051401958,3.73019105,105.17,105.13,22.13750814]
[1770051402159,3.73019105,105.18,105.14,12.62600879]
[1770051402759,13.23788983,105.18,105.14,12.62600879]
[1770051403479,13.23788983,105.18,105.15,8.69407079]
[1770051404375,3.73019105,105.17,105.12,3.931938]
[1770051404582,3.73019105,105.17,105.14,8.69407079]
[1770051405879,3.73019105,105.16,105.12,18.20651631]
[1770051406078,3.73019105,105.16,105.12,18.20698394]
[1770051406271,3.73019105,105.15,105.12,8.69407079]
[1770051406658,3.73019105,105.14,105.11,8.69407079]
[1770051406865,3.73019105,105.14,105.1,12.62600879]
[1770051407984,3.73019105,105.14,105.1,8.69407079]
[1770051408883,3.75298161,105.13,105.1,8.69407079]
[1770051410089,9.51201401,105.14,105.1,13.5535799]
[1770051410090,13.38623797,105.14,105.1,13.5535799]
[1770051410295,13.38623797,105.14,105.11,8.69407079]
[1770051410588,13.38623797,105.14,105.12,8.69407079]
[1770051410589,3.87422396,105.14,105.12,8.69407079]
[1770051410777,3.87422396,105.15,105.12,12.73311241]
[1770051411570,3.87422396,105.15,105.12,22.24584381]
[1770051412501,13.38447812,105.15,105.12,12.73311241]
[1770051413186,13.38447812,105.15,105.12,8.69407079]
[1770051413489,3.87422396,105.14,105.11,22.24655327]
[1770051413984,13.38396329,105.16,105.13,8.69407079]
[1770051414190,3.87422396,105.17,105.14,8.69407079]
[1770051414482,3.87422396,105.19,105.16,8.69407079]
[1770051414788,3.87422396,105.21,105.18,12.73311241]
[1770051414991,19.52302562,105.23,105.2,8.69407079]
[1770051415288,10.01980908,105.23,105.2,8.69407079]
[1770051415471,19.52295332,105.23,105.2,8.69407079]
[1770051416078,3.87422396,105.22,105.19,8.69407079]
[1770051416309,3.87422396,105.2,105.16,8.69407079]
[1770051416471,3.87422396,105.19,105.16,8.69407079]
[1770051416672,3.87422396,105.19,105.17,8.69407079]
[1770051416973,3.87422396,105.19,105.16,12.73311241]
[1770051417175,3.87422396,105.19,105.16,8.69407079]
[1770051417176,13.38142077,105.19,105.16,8.69407079]
[1770051417396,13.38142077,105.19,105.15,8.69407079]
[1770051417604,3.87422396,105.17,105.12,4.03904162]
[1770051417802,3.87422396,105.17,105.14,8.69407079]
[1770051417979,3.87422396,105.17,105.15,8.69407079]
[1770051419498,13.38264618,105.17,105.14,8.69407079]
[1770051420400,4.1585471,105.16,105.12,8.69407079]
[1770051420694,3.87422396,105.14,105.1,8.69407079]
[1770051420873,3.87422396,105.14,105.1,22.24779308]
[1770051421492,13.38496939,105.15,105.12,8.69407079]
[1770051422391,3.87422396,105.14,105.11,8.69407079]
[1770051422574,13.38568415,105.14,105.11,8.69407079]
[1770051424792,3.87422396,105.14,105.11,8.69407079]
[1770051425493,13.38556176,105.14,105.11,8.69407079]
[1770051425989,13.38556176,105.14,105.1,12.73311241]
[1770051426495,13.38556176,105.14,105.11,8.69407079]
[1770051427279,13.38556176,105.14,105.1,13.55364691]
[1770051427587,13.38556176,105.14,105.11,12.73311241]
[1770051427782,3.87422396,105.14,105.12,8.69407079]
[1770051427997,3.87422396,105.14,105.11,22.24689168]
[1770051428196,13.3848791,105.15,105.12,12.73311241]
[1770051428492,3.87422396,105.15,105.12,12.73311241]
[1770051429091,3.87422396,105.14,105.12,8.69407079]
[1770051429288,9.51030912,105.15,105.12,18.20697741]
[1770051429289,3.87422396,105.15,105.12,18.20697741]
[1770051429605,3.87422396,105.15,105.12,12.73311241]
[1770051430601,3.87422396,105.15,105.12,12.74087297]
[1770051431280,13.38402725,105.16,105.13,8.70183135]
[1770051431707,13.38402725,105.16,105.12,12.74087297]
[1770051433193,13.38402725,105.16,105.12,22.25375441]
[1770051433401,13.38402725,105.16,105.13,8.70183135]
[1770051434898,13.38402725,105.16,105.12,22.25375441]
[1770051436809,4.1585471,105.15,105.1,4.03904162]
[1770051437005,4.1585471,105.15,105.11,12.74087297]
[1770051437509,4.1585471,105.15,105.12,4.03904162]
[1770051439212,9.51112801,105.14,105.12,4.03904162]
[1770051439399,13.38535197,105.14,105.11,4.03904162]
[1770051439801,13.38535197,105.14,105.11,12.74087297]
[1770051440287,9.51112801,105.14,105.12,4.38198885]
[1770051441008,13.89740071,105.15,105.12,13.0838202]
[1770051444513,2.0759415,105.15,105.12,13.0838202]
[1770051444809,26.44,105.21,105.15,4.38198885]
[1770051444995,8.70183135,105.2,105.16,13.0838202]
[1770051445510,8.70183135,105.2,105.15,13.0838202]
[1770051445810,8.70183135,105.19,105.15,8.70183135]
[1770051445994,8.70183135,105.19,105.14,13.0838202]
[1770051446397,8.70183135,105.17,105.13,13.0838202]
[1770051446598,9.50931913,105.16,105.13,13.0838202]
[1770051446910,4.10275016,105.15,105.12,9.51291514]
[1770051447109,4.10275016,105.15,105.11,22.59717125]
[1770051447594,4.10275016,105.15,105.12,13.0838202]
[1770051447788,9.50931913,105.16,105.12,13.89454266]
[1770051448013,48.73338495,105.17,105.13,13.0838202]
[1770051448203,4.10275016,105.16,105.13,4.38198885]
[1770051448402,4.10275016,105.16,105.13,13.0838202]
[1770051448610,4.10275016,105.16,105.13,22.59579614]
[1770051448794,13.61211721,105.16,105.13,13.0838202]
[1770051449196,13.61211721,105.16,105.13,4.38198885]
[1770051449396,13.61211721,105.16,105.13,13.0838202]
[1770051451914,4.10275016,105.16,105.13,22.59583455]
[1770051452521,9.50880065,105.17,105.14,8.70183135]
[1770051452819,13.61155081,105.17,105.14,8.70183135]
[1770051454021,4.10275016,105.17,105.14,22.594898]
[1770051454202,35.92791238,105.18,105.14,18.21278894]
[1770051454403,12.80458151,105.19,105.14,18.21278894]
[1770051454404,13.60976301,105.19,105.16,4.38198885]
[1770051454600,26.42,105.2,105.18,4.38198885]
[1770051455520,4.10275016,105.2,105.17,12.98650398]
[1770051455730,13.60794421,105.21,105.18,7.86068645]
[1770051456018,4.06172265,105.19,105.13,4.38198885]
[1770051456324,7.54042025,105.19,105.14,7.86068645]
[1770051456722,4.06172265,105.18,105.14,7.86068645]
[1770051456912,9.50841494,105.17,105.14,7.86068645]
[1770051457230,13.56969334,105.18,105.14,7.86068645]
[1770051457430,9.50797069,105.18,105.15,7.86068645]
[1770051458418,9.50797069,105.18,105.15,13.07908375]
[1770051460322,13.56876011,105.19,105.15,22.58921656]
[1770051460510,13.56876011,105.19,105.15,13.07908375]
[1770051462330,13.56876011,105.19,105.16,4.38198885]
[1770051463028,13.56876011,105.19,105.15,22.58898711]
[1770051463624,13.56876011,105.19,105.15,18.20699826]
[1770051463831,22.26585501,105.19,105.16,4.38198885]
[1770051464837,10.20730777,105.23,105.19,4.38198885]
[1770051465128,6.14558512,105.23,105.2,4.38198885]
[1770051465516,10.20730777,105.23,105.2,4.38198885]
[1770051466237,19.71063989,105.23,105.2,4.38198885]
[1770051466627,4.06172265,105.2,105.16,13.07908375]
[1770051466930,17.0340884,105.2,105.16,13.07908375]
[1770051467132,17.0340884,105.2,105.16,22.58839904]
[1770051467617,17.0340884,105.2,105.16,4.38198885]
[1770051468318,26.54065771,105.2,105.16,22.58824988]
[1770051468631,17.84356281,105.2,105.16,22.58824988]
[1770051469016,17.84356281,105.2,105.16,13.07908375]
[1770051469217,26.54065771,105.2,105.16,4.38198885]
[1770051469431,8.6970949,105.19,105.16,4.38198885]
[1770051469630,41.60782136,105.2,105.16,13.07908375]
[1770051469831,50.30491626,105.2,105.16,13.07908375]
[1770051470137,8.6970949,105.19,105.16,4.38198885]
[1770051470638,9.50696712,105.19,105.16,4.38198885]
[1770051471336,9.50696712,105.19,105.16,13.07908375]
[1770051474336,18.20225872,105.21,105.17,4.34290507]
[1770051474532,18.90440267,105.23,105.2,4.34290507]
[1770051474731,10.20730777,105.23,105.2,4.34290507]
[1770051475134,6.14558512,105.23,105.22,13.03999997]
[1770051475435,4.38832681,105.26,105.23,4.34290507]
[1770051475742,4.38832681,105.26,105.24,8.6970949]
[1770051476128,4.38832681,105.26,105.17,46.93466603]
[1770051476129,8.6970949,105.25,105.2,13.03999997]
[1770051476439,4.18832681,105.23,105.2,4.34290507]
[1770051476629,13.69183063,105.23,105.2,4.34290507]
[1770051477226,46.14640913,105.23,105.19,13.03999997]
[1770051477427,4.18832681,105.2,105.17,46.79250446]
[1770051477626,12.88542171,105.2,105.17,46.79250446]
[1770051477843,4.18832681,105.2,105.17,46.79250446]
[1770051478543,12.88542171,105.18,105.14,13.03999997]
[1770051478750,12.88542171,105.18,105.15,4.34290507]
[1770051478937,4.18832681,105.18,105.15,4.34290507]
[1770051479446,4.18832681,105.18,105.15,13.03999997]
[1770051480430,13.69588799,105.18,105.15,13.03999997]
[1770051480744,4.18832681,105.18,105.15,22.55016161]
[1770051480931,9.50429627,105.22,105.18,4.34290507]
[1770051481247,4.18832681,105.23,105.19,13.03999997]
[1770051481451,4.18832681,105.22,105.19,4.34290507]
[1770051481742,4.18832681,105.22,105.19,13.03999997]
[1770051481940,46.14639584,105.23,105.19,13.03999997]
[1770051482330,4.18832681,105.22,105.18,13.03999997]
[1770051482530,13.69263879,105.22,105.18,22.54748501]
[1770051482845,4.18832681,105.22,105.19,13.03999997]
[1770051483139,13.6922919,105.22,105.19,13.03999997]
[1770051484029,4.18832681,105.23,105.19,13.03999997]
[1770051484427,12.88542171,105.23,105.19,13.03999997]
[1770051485249,9.50389659,105.22,105.19,13.03999997]
[1770051487248,4.18832681,105.21,105.18,8.6970949]
[1770051487956,4.18832681,105.2,105.16,13.03999997]
[1770051488154,4.18832681,105.19,105.15,13.03999997]
[1770051488847,12.88542171,105.19,105.15,13.03999997]
[1770051489035,4.18832681,105.18,105.15,4.34290507]
[1770051489240,13.69656339,105.18,105.15,4.34290507]
[1770051489939,13.69656339,105.18,105.15,13.03999997]
[1770051490125,9.50823658,105.18,105.15,13.03999997]
[1770051492058,46.16243562,105.18,105.14,13.03999997]
[1770051492352,12.88542171,105.16,105.12,13.03999997]
[1770051492537,4.18832681,105.15,105.12,4.34290507]
[1770051492742,4.18832681,105.14,105.11,4.34290507]
[1770051494337,13.69967253,105.14,105.11,4.34290507]
[1770051495755,13.69967253,105.14,105.11,8.70236124]
[1770051495955,4.18832681,105.13,105.1,8.70236124]
[1770051496152,4.18832681,105.13,105.09,13.04526631]
[1770051496356,4.18832681,105.12,105.09,13.04526631]
[1770051496658,12.89068805,105.12,105.08,13.04526631]
[1770051496961,4.18832681,105.12,105.09,13.04526631]
[1770051497260,4.18832681,105.12,105.09,4.34290507]
[1770051497756,4.18832681,105.11,105.08,4.34290507]
[1770051497959,13.70268575,105.11,105.08,4.34290507]
[1770051498345,22.40504699,105.11,105.07,55.65374374]